Cogmind - Beta 13 @@@ ROGUE MODE // 2024.04.10 @ 22:38:08 Player: nowtakenusername Result: Destroyed by B-86 Titan with Hardcell Cannon Performance ------------- Evolutions (6) 3000 Regions Visited (12) 2400 Robots Destroyed (200) 1000 Value Destroyed (6622) 6622 Prototype IDs (54) 1080 Alien Tech Used (0) 0 Bonus (1552) 1552 TOTAL SCORE: 15654 Bonus ------- High Alert Combat Kills 299 Follower Combat Kills 1064 Aligned with FarCom 300 Friendly Fire -111 Cogmind --------- Core Integrity 0/1150 Matter 300/300 Energy 315/315 System Corruption 23% Temperature Cool (9) Movement Treading (160) Location -4/Extension Parts ------- > --- POWER (2) -------- Neutrino Core > --- PROPULSION (5) --- Improved Treads Improved Medium Treads Flexi-carbon Leg Flexi-carbon Leg Flexi-carbon Leg > --- UTILITY (9) ------ Medium Storage Unit Advanced Gravity Neutralizer Advanced Signal Interpreter Advanced Melee Analysis Suite Graphene Brace Improved System Guard Thief Drone Bay (3/3) > --- WEAPON (3) ------- Power Maul > --- INVENTORY (10) --- Light Antimatter Reactor Improved Antigrav System Advanced Surge Thruster Field Propulsion Array Advanced Weight Redist. System Advanced Targeting Computer Dispersion Rifle Deploy-a-Sentry Peak State ------------ > --- POWER ------------ Micro Nuclear Core Micro Fission Core > --- PROPULSION ------- Flexi-carbon Leg Myomer Leg Field Propulsion Drive Field Propulsion Drive Field Propulsion Drive > --- UTILITY ---------- Advanced Heat Sink Advanced Signal Interpreter Advanced Melee Analysis Suite Microactuators Advanced Reaction Control System Improved Medium Armor Plating Layered Light Armor Plating Graphene Brace Experimental System Shield > --- WEAPON ----------- Dispersion Rifle Micro-nuke Launcher Force Lance > --- INVENTORY -------- Advanced Surge Thruster Experimental Cooling System Thief Drone Bay Matter Neutralizer Deploy-a-Sentry [Rating: 113] Favorites ----------- Power Micro Nuclear Core Engine Reinforced Ion Engine Power Core Micro Nuclear Core Reactor Light Antimatter Reactor Propulsion Light Treads Treads Light Treads Leg Flexi-carbon Leg Hover Unit Cooled Airjet Flight Unit Field Propulsion Drive Utility High-capacity Storage Unit Device Microactuators Storage High-capacity Storage Unit Processor Signal Interpreter Hackware Hacking Suite Protection Improved Light Armor Plating Weapon Assault Cannon Energy Gun Pulse Rifle Energy Cannon Heavy Particle Cannon Ballistic Gun Light Assault Rifle Ballistic Cannon Assault Cannon Launcher Smartbomb Launcher Special Weapon Remote Datajack Impact Weapon Heavy Mace Slashing Weapon Chainsword Piercing Weapon Force Lance Build | -11 -10 -10 -9 -9 -9 -8 -8 -7 -6 -5 -4 -4 ------- Run | Yrd Mat Min Mat Min Exi Min Mat Fac Fac Fac Fac Ext Slots Evolved 12 | . . . 2 . . . 2 2 2 2 2 . Power 1 | . . . . . . . . . . 1 . . Propulsion 3 | . . . 1 . . . . 1 . 1 . . Utility 7 | . . . 1 . . . 2 1 1 . 2 . Weapon 1 | . . . . . . . . . 1 . . . Parts Attached 291 | 5 2 4 26 . . 13 43 46 33 26 43 50 Power 34 | 1 . . 2 . . 5 2 5 1 4 10 4 Engine 13 | 1 . . 2 . . 4 1 1 1 1 . 2 Core 17 | . . . . . . 1 1 4 . 3 7 1 Reactor 4 | . . . . . . . . . . . 3 1 Propulsion 92 | 2 . . 12 . . 4 16 13 9 10 6 20 Treads 32 | 2 . . 11 . . 4 11 . . . . 4 Leg 9 | . . . . . . . 2 . . . . 7 Wheel . | . . . . . . . . . . . . . Hover 21 | . . . . . . . 2 13 1 . . 5 Flight 30 | . . . 1 . . . 1 . 8 10 6 4 Utility 91 | . 2 3 5 . . 2 16 9 14 4 20 16 Device 40 | . 1 2 3 . . . 3 3 5 2 12 9 Storage 8 | . 1 . 2 . . . 1 1 . . 2 1 Processor 9 | . . 1 . . . . 2 . 2 . 2 2 Hackware 6 | . . . . . . . . 2 1 1 1 1 Protection 28 | . . . . . . 2 10 3 6 1 3 3 Artifact . | . . . . . . . . . . . . . Weapon 74 | 2 . 1 7 . . 2 9 19 9 8 7 10 Energy Gun 17 | 1 . . 2 . . . 5 2 1 2 2 2 Energy Cannon 4 | . . . . . . . 1 1 . . . 2 Ballistic Gun 22 | 1 . . 1 . . . . 12 4 2 . 2 Ballistic Cannon 6 | . . . 4 . . 1 1 . . . . . Launcher 9 | . . . . . . . 2 . . 1 5 1 Special Weapon 1 | . . . . . . . . . 1 . . . Impact Weapon 3 | . . . . . . . . . . 2 . 1 Slashing Weapon 9 | . . 1 . . . 1 . 4 3 . . . Piercing Weapon 3 | . . . . . . . . . . 1 . 2 Special Melee Weapon . | . . . . . . . . . . . . . Unidentified Prototypes 29 | . . 1 3 . . . 6 4 3 4 6 2 Corrupted Parts 4 | . . . . . . . . . . . . 4 System Corruption 31 | . . . . . . . . . . . . 31 Parts Lost 57 | . . . . . . 5 12 7 1 1 9 22 Power 7 | . . . . . . . . 1 . . 1 5 Propulsion 21 | . . . . . . 3 5 3 . 1 3 6 Utility 21 | . . . . . . 1 4 2 1 . 3 10 Weapon 8 | . . . . . . 1 3 1 . . 2 1 Highest Loss Streak 6 | . . . . . . 3 4 6 1 1 4 6 To Critical Strikes . | . . . . . . . . . . . . . Average Slot Usage (%) 91 | . 89 100 98 100 100 99 91 97 87 90 88 70 Engine 5 | . 14 14 11 11 11 10 5 . . 4 . . Core 2 | . . . . . . . 3 6 5 5 6 4 Treads 16 | . 28 28 32 33 33 32 24 . . . . . Hover 4 | . . . . . . . . 29 8 . . 2 Flight 5 | . . . . . . . . . 14 24 26 11 Device 9 | . 9 11 10 11 11 . 6 3 12 10 15 16 Storage 7 | . 8 14 11 11 11 11 10 6 6 5 2 . Processor 8 | . . 2 11 11 11 11 8 7 6 5 10 11 Hackware 3 | . . . . . . . . 11 12 11 8 2 Protection 7 | . . . . . . 10 14 13 6 5 5 6 Energy Gun 3 | . 14 14 . . . . 8 . . 4 2 1 Energy Cannon 1 | . . . . . . . 7 . . . . 1 Ballistic Gun 2 | . 14 3 . . . . . 6 5 . . . Ballistic Cannon 5 | . . . 21 22 22 15 . . . . . . Slashing Weapon 2 | . . 10 . . . 6 . 6 5 . . . Naked Turns . | . . . . . . . . . . . . . Heaviest Build 76 | 8 14 18 61 61 61 67 76 29 34 44 50 52 Greatest Support 76 | 40 40 40 69 69 69 69 69 34 34 47 47 76 Greatest Overweight (x) 25 | . . . . . . 1 25 2 1 1 1 10 Average Overweight (x) . | . . . . . . . . . . . . . Largest Inventory Capacity 20 | 5 8 8 20 20 20 20 20 20 10 10 10 10 Average Capacity 13 | 5 6 8 15 20 20 20 20 9 10 10 7 5 Most Carried 20 | 5 8 8 19 19 20 20 20 20 10 10 10 9 Average Carried 12 | 3 6 7 14 18 19 17 19 9 9 9 6 4 Final Capacity 20 | 5 8 8 20 20 20 20 20 10 10 10 5 10 Final Carried 20 | 5 8 8 19 19 20 20 20 10 10 10 4 9 Class Distribution -------------------- 50% | Mutant 22% | Scavenger-Mutant 14% | Hacker-Sprinter 5% | Hacker-Mutant 3% | Sprinter Dominant Class ---------------- Mutant | -10/Materials Mutant | -10/Mines Mutant | -9/Materials Mutant | -9/Mines Mutant | -9/Exiles Mutant | -8/Mines Scavenger-Mutant | -8/Materials Hacker-Mutant | -7/Factory Hacker-Sprinter | -6/Factory Hacker-Sprinter | -5/Factory Hacker-Sprinter | -4/Factory Mutant | -4/Extension Resources | -11 -10 -10 -9 -9 -9 -8 -8 -7 -6 -5 -4 -4 ----------- Run | Yrd Mat Min Mat Min Exi Min Mat Fac Fac Fac Fac Ext Matter Collected 4662 | 206 94 95 1200 . . 494 543 489 259 380 276 626 Remotely 607 | . . . 607 . . . . . . . . . Salvage Created 8687 | . 284 181 889 46 103 422 1670 1411 834 927 786 1134 Parts 425 | . 25 5 66 1 11 31 74 76 29 34 37 36 Haulers Intercepted 24 | . . . 4 . . . 5 5 2 5 2 1 Recyclers Shooed 5 | . 1 . 2 . . . . . . 1 . 1 Parts Field Recycled . | . . . . . . . . . . . . . Retrieved Matter . | . . . . . . . . . . . . . Parts Self-Destructed . | . . . . . . . . . . . . . Prevented . | . . . . . . . . . . . . . Kills | -11 -10 -10 -9 -9 -9 -8 -8 -7 -6 -5 -4 -4 ------- Run | Yrd Mat Min Mat Min Exi Min Mat Fac Fac Fac Fac Ext Combat Hostiles Destroyed 128 | . 3 4 22 1 3 18 27 14 11 4 11 10 Melee 42 | . . . . . . 4 . 14 10 3 7 4 Guns 21 | . 3 4 . . . . 13 . 1 . . . Cannons 52 | . . . 22 1 3 14 11 . . . . 1 AOE 8 | . . . . . . . 3 . . . 4 1 Classes Destroyed 16 | . 4 1 6 . 1 . 2 1 1 . . . Worker 6 | . . . 1 . . . 1 3 . . 1 . Builder 8 | . . . 2 . . 4 1 . . . . 1 Hauler 24 | . . . 4 . . . 5 5 2 5 2 1 Recycler 10 | . 1 1 . . . . 1 4 . 1 . 2 Operator 8 | . 1 . 2 . . . 1 3 . . 1 . Watcher 16 | . 2 . 4 . . . 1 1 1 4 1 2 Swarmer 20 | . . 3 3 . . 10 . . . . 4 . Saboteur 1 | . . . . . . . . . 1 . . . Grunt 69 | . 3 1 12 . 2 7 17 6 8 2 3 8 Brawler 3 | . . . 1 . . . 2 . . . . . Duelist 3 | . . . 1 . . 1 . 1 . . . . Protector 1 | . . . . . . . 1 . . . . . Sentry 18 | . . . 5 1 . . 6 2 . 1 2 1 Demolisher 1 | . . . . . 1 . . . . . . . Hunter 4 | . . . . . . . 1 2 . 1 . . Programmer 8 | . . . . . . . . 3 2 . 2 1 Best Kill Streak 8 | . 2 3 8 1 2 6 6 3 3 4 5 4 Combat Bots Only 6 | . 1 3 4 1 2 6 5 3 3 2 4 4 Max Kills in Single Turn 3 | . 1 2 2 1 1 2 2 1 1 1 3 1 Gunslinging . | . . . . . . . . . . . . . Exploded 3 | . . . . . . . 1 . . . 3 1 Melee 1 | . . . . . . 1 . 1 1 1 1 1 Uniques/NPCs Destroyed . | . . . . . . . . . . . . . Combat | -11 -10 -10 -9 -9 -9 -8 -8 -7 -6 -5 -4 -4 -------- Run | Yrd Mat Min Mat Min Exi Min Mat Fac Fac Fac Fac Ext Hostile Shots Fired 996 | . 12 7 70 4 36 93 184 94 101 14 72 309 Missed 296 | . 1 1 21 2 9 21 42 30 35 5 23 106 Damage Taken 12364 | . 178 59 588 46 395 1264 2278 947 1175 364 1178 3892 Core 2189 | . 51 . 137 . 75 140 284 134 218 . 232 918 Absorbed by Shields . | . . . . . . . . . . . . . Redirected to Shielding 136 | . . . . . . . 25 111 . . . . Regen/Repaired (Parts) 404 | . . . . . . . 201 97 106 . . . Core Remaining (%) 70 | 100 . 79 . . . 12 48 80 74 100 . . Volleys Fired 322 | . 21 6 73 3 4 49 96 8 16 . 2 44 Largest 3 | . 2 2 2 2 2 2 2 1 1 . 1 3 Hottest 226 | . 60 60 88 88 88 88 140 63 30 . 46 226 Shots Fired 534 | . 42 8 145 6 8 73 176 8 16 . 2 50 Gun 189 | . 42 8 . . . . 89 8 16 . . 26 Cannon 338 | . . . 145 6 8 73 82 . . . . 24 Launcher 7 | . . . . . . . 5 . . . 2 . Special . | . . . . . . . . . . . . . Kinetic 282 | . 21 2 145 6 8 73 4 4 16 . . 3 Thermal 191 | . . . . . . . 140 4 . . . 47 Explosive 7 | . . . . . . . 5 . . . 2 . Electromagnetic 54 | . 21 6 . . . . 27 . . . . . Robot Hit Streak 19 | . 9 3 7 2 5 8 19 3 9 . . 8 Robot Miss Streak 5 | . 2 3 4 1 1 5 5 1 1 . . 4 Penetration Max 1 | . . . . . . . . . . . . 1 Secondary Targets 1 | . . . . . . . 1 . . . . . Max Gunslinging Chain 1 | . . . . . . . 1 . . . . . Shots Hit Robots 547 | . 29 5 77 2 5 58 120 74 47 30 33 67 Core Hits 256 | 1 12 5 36 1 3 27 72 32 14 12 19 22 Critical Kills 3 | . . . . . . . . . . 1 . 2 Critical Parts Destroyed 5 | . . . . . . . . . . . . 5 Critical Strikes 51 | . 2 . 4 . . 3 5 15 7 2 3 10 Burn 4 | . . . . . . . 4 . . . . . Destroy 2 | . . . . . . . . . . . . 2 Blast 7 | . . . 4 . . 2 1 . . . . . Corrupt 2 | . 2 . . . . . . . . . . . Smash 6 | . . . . . . . . . . 1 . 5 Sever 23 | . . . . . . 1 . 15 7 . . . Impale 7 | . . . . . . . . . . 1 3 3 Melee Attacks 341 | . . 3 . . . 24 . 100 60 46 48 60 Impact 51 | . . . . . . . . . . 30 . 21 Slashing 187 | . . 3 . . . 24 . 100 60 . . . Piercing 103 | . . . . . . . . . . 16 48 39 Sneak Attacks 39 | . . 1 . . . 5 . 15 4 7 5 2 Combat Hostiles 5 | . . . . . . . . 1 . 1 3 . Follow-up Attacks . | . . . . . . . . . . . . . Damage Inflicted 20364 | 5 395 119 1936 49 113 1776 3109 3297 2445 1817 2219 3084 Guns 2536 | . 335 68 . . . . 1268 94 364 . . 407 Cannons 4743 | . . . 1908 49 113 1031 1245 . . . . 397 Explosions 1208 | . 60 . . . . . 596 . . . 415 137 Melee 11828 | . . 51 . . . 731 . 3203 2081 1817 1804 2141 Ramming 49 | 5 . . 28 . . 14 . . . . . 2 Kinetic 3749 | . 92 17 1908 49 113 1031 34 58 364 . . 83 Thermal 3010 | . 60 . . . . . 2056 36 . . . 858 Explosive 979 | . . . . . . . 564 . . . 415 . Electromagnetic 749 | . 243 51 . . . . 455 . . . . . Impact 1824 | . . . . . . . . . . 1109 . 715 Slashing 6066 | . . 51 . . . 731 . 3203 2081 . . . Piercing 3938 | . . . . . . . . . . 708 1804 1426 Highest Corruption 23 | . . . . . . 4 3 1 5 1 2 23 Average Corruption 2 | . . . . . . 4 2 1 2 1 1 2 Corruption Purged 3 | . . . . . . . . . 3 . . . Corruption Blocked . | . . . . . . . . . . . . . Effects 69 | . . . . . . 15 29 1 3 1 4 16 Message Errors 19 | . . . . . . 4 5 . 1 . 1 8 Matter Fused 17 | . . . . . . 5 6 . 1 . 2 3 Heat Flow Errors 12 | . . . . . . 4 5 . . . . 3 Energy Discharges 6 | . . . . . . . 4 1 1 . . . Parts Rejected 1 | . . . . . . 1 . . . . . . Parts Fused 1 | . . . . . . . 1 . . . . . Data Loss (minor) 6 | . . . . . . 1 3 . . 1 . 1 Data Loss (major) 5 | . . . . . . . 3 . . . 1 1 Misfires 2 | . . . . . . . 2 . . . . . Overload Shots . | . . . . . . . . . . . . . Overflow Damage 1214 | . . 21 . . . 122 25 180 80 251 151 384 Projectiles 54 | . . . . . . 21 20 . . . . 13 Explosions 82 | . . . . . . . 5 . . . 77 . Melee 1078 | . . 21 . . . 101 . 180 80 251 74 371 Knockbacks 30 | . . . 13 . . 8 . . . 6 . 3 Impact 10 | . . . 1 . . . . . . 6 . 3 Kinetic 18 | . . . 11 . . 7 . . . . . . Secondary 2 | . . . 1 . . 1 . . . . . . Self-Inflicted Damage 80 | . 40 . . . . . 40 . . . . . Shots 2 | . 1 . . . . . 1 . . . . . Rammed 7 | 2 . . 3 . . 2 . . . . . . Targets Rammed 9 | 2 . . 4 . . 2 . . . . . 1 Kicked 1 | . . . . . . . . . . . . 1 Crushed 1 | . . . 1 . . . . . . . . . Highest Temperature 575 | . 82 20 255 78 90 426 575 1 28 301 391 351 Average Temperature 96 | . 36 13 87 37 41 131 121 1 12 79 69 91 Received Heat Transfer 3721 | . 96 24 192 18 48 441 1044 252 495 54 238 819 Effects 17 | . . . . . . 8 9 . . . . . Shutdowns 3 | . . . . . . 2 1 . . . . . Energy Bleed 5 | . . . . . . 2 3 . . . . . Interference 5 | . . . . . . 3 2 . . . . . Short Circuit 3 | . . . . . . 1 2 . . . . . Damage (minor) 1 | . . . . . . . 1 . . . . . Siege Activations . | . . . . . . . . . . . . . Robots Corrupted . | . . . . . . . . . . . . . Combat Hostiles . | . . . . . . . . . . . . . Parts Fried 12 | . . . . . . . 2 . . 4 . 6 Impact Corruptions 15 | . . . . . . . . . . 9 . 6 Robots Melted . | . . . . . . . . . . . . . Combat Hostiles . | . . . . . . . . . . . . . Parts Melted 4 | . . 1 . . . . 2 . . . 1 . Heat Transferred 4911 | . 50 . . . . . 3954 74 . . . 833 Parts Sabotaged 2 | . . . . . . . . . 2 . . . Parts Stolen . | . . . . . . . . . . . . . Parts Stripped . | . . . . . . . . . . . . . Power Chain Reactions 3 | . 2 . . . . . 1 . . . . . Alert | -11 -10 -10 -9 -9 -9 -8 -8 -7 -6 -5 -4 -4 ------- Run | Yrd Mat Min Mat Min Exi Min Mat Fac Fac Fac Fac Ext Peak Influence 811 | . 194 206 507 184 . 314 436 248 502 339 493 811 Initial 159 | . . 75 1 159 . . 13 149 121 144 69 117 Average 211 | . 50 122 277 87 . 165 291 120 321 213 265 261 Maximum Alert Level 3 | . . 1 2 . . 1 2 1 2 1 2 3 Low Security (%) 52 | 100 100 72 34 100 . 63 12 92 18 54 22 53 Level 1 38 | . . 27 32 . . 36 83 7 59 45 72 16 Level 2 8 | . . . 33 . . . 4 . 21 . 4 21 Level 3 1 | . . . . . . . . . . . . 8 Level 4 . | . . . . . . . . . . . . . Level 5 . | . . . . . . . . . . . . . High Security . | . . . . . . . . . . . . . Max Security . | . . . . . . . . . . . . . Squads Dispatched 51 | . 1 . 4 . . 1 6 12 9 7 6 5 Investigation 18 | . . . 1 . . . 1 5 2 3 3 3 Extermination 8 | . . . . . . . . 3 2 1 2 . Reinforcement 22 | . 1 . 3 . . 1 4 4 4 2 1 2 Assault 2 | . . . . . . . 1 . 1 . . . Garrison 1 | . . . . . . . . . . 1 . . Intercept . | . . . . . . . . . . . . . Searches Triggered 1 | . . . . . . . . . 1 . . . Construction Impeded 3 | . . . 1 . . 1 . . . . . 1 Haulers Reinforced 3 | . . . . . . . . 1 1 1 . . Active Scanning Responses . | . . . . . . . . . . . . . Cargo Convoy Interrupts . | . . . . . . . . . . . . . Stealth | -11 -10 -10 -9 -9 -9 -8 -8 -7 -6 -5 -4 -4 --------- Run | Yrd Mat Min Mat Min Exi Min Mat Fac Fac Fac Fac Ext Distress Signals 22 | . . . 6 . . . 5 . . 3 2 6 Communications Jammed . | . . . . . . . . . . . . . Distress Signals . | . . . . . . . . . . . . . Times Spotted 257 | . 9 3 35 2 6 21 41 21 32 13 24 50 Peak Tracking Total 8 | . 2 2 5 2 5 4 5 4 6 2 7 8 Tactical Retreats 32 | . 1 . 1 . . 3 1 2 8 1 5 10 Traps | -11 -10 -10 -9 -9 -9 -8 -8 -7 -6 -5 -4 -4 ------- Run | Yrd Mat Min Mat Min Exi Min Mat Fac Fac Fac Fac Ext Traps Triggered 15 | . . . . . . . . 2 2 3 3 5 Indirectly . | . . . . . . . . . . . . . Trap Hack Attempts . | . . . . . . . . . . . . . Triggered . | . . . . . . . . . . . . . Disarmed . | . . . . . . . . . . . . . Reprogrammed . | . . . . . . . . . . . . . Reused . | . . . . . . . . . . . . . Traps Extracted . | . . . . . . . . . . . . . Installed . | . . . . . . . . . . . . . Triggered . | . . . . . . . . . . . . . Machines | -11 -10 -10 -9 -9 -9 -8 -8 -7 -6 -5 -4 -4 ---------- Run | Yrd Mat Min Mat Min Exi Min Mat Fac Fac Fac Fac Ext Machines Disabled 14 | . 1 . 1 . 3 1 4 . . . . 4 Max in Single Turn 2 | . 1 . 1 . 1 1 1 . . . . 2 Garrison Access 3 | . . . . . . . 1 1 1 . . . Energy Cycler 2 | . . . . . . . . . . . . 2 Machines Repaired . | . . . . . . . . . . . . . Machines Dismantled . | . . . . . . . . . . . . . Machines Sabotaged . | . . . . . . . . . . . . . Overloaded Fab Kills . | . . . . . . . . . . . . . Hacking | -11 -10 -10 -9 -9 -9 -8 -8 -7 -6 -5 -4 -4 --------- Run | Yrd Mat Min Mat Min Exi Min Mat Fac Fac Fac Fac Ext Machines Accessed 76 | . 4 1 3 . 1 . 8 14 11 12 15 7 Terminals 40 | . 2 . 3 . . . 6 5 4 8 6 6 Fabricators 11 | . . . . . . . . 2 2 3 4 . Repair Stations 7 | . . . . . . . 2 2 2 . 1 . Recycling Units 8 | . 2 . . . . . . 1 1 1 2 1 Scanalyzers 3 | . . . . . . . . 2 . . 1 . Garrison Access 5 | . . . . . . . . 2 2 . 1 . Total Hacks 196 | . 12 1 5 . 1 . 22 39 27 38 35 16 Successful 94 | . 4 1 2 . 1 . 8 23 11 16 19 9 Failed 102 | . 8 . 3 . . . 14 16 16 22 16 7 Catastrophic 26 | . 1 . 1 . . . 3 2 4 5 7 3 Database Lockouts . | . . . . . . . . . . . . . Manual 48 | . 3 . 4 . 1 . 7 4 5 13 9 2 Terminals 110 | . 8 . 5 . . . 16 15 9 27 16 14 Fabricators 29 | . . . . . . . . 6 5 10 8 . Repair Stations 23 | . . . . . . . 6 4 10 . 3 . Recycling Units 12 | . 4 . . . . . . 1 1 1 3 2 Scanalyzers 13 | . . . . . . . . 10 . . 3 . Garrison Access 7 | . . . . . . . . 3 2 . 2 . Terminal Hacks 49 | . 4 1 2 . 1 . 4 6 1 10 11 9 Record 14 | . . . . . . . . 2 1 2 4 5 Part Schematic 7 | . . . 1 . . . 1 2 . 3 . . Robot Analysis 2 | . . . . . . . . 2 . . . . Prototype ID Bank 1 | . 1 . . . . . . . . . . . Open Door 4 | . . 1 . . . . . . . . . 3 Open DSF 1 | . . . . . . . . . . . 1 . Branch Access Points 1 | . 1 . . . . . . . . . . . Emergency Access Points 1 | . . . . . . . . . . . 1 . Terminal Index 2 | . . . . . . . . . . 1 1 . Fabricator Index 2 | . . . . . . . . . . 1 1 . Alert Level 1 | . . . . . . . . . . 1 . . Unreport Threat 1 | . . . . . . . 1 . . . . . Locate Traps 5 | . 1 . 1 . . . . . . 1 1 1 Investigation Status 1 | . . . . . . . . . . 1 . . Recall Investigation 1 | . . . . . . . 1 . . . . . Hauler Manifests 3 | . 1 . . . . . 1 . . . 1 . Zone Layout 1 | . . . . . . . . . . . 1 . Derelict Proto ID Bank 1 | . . . . . 1 . . . . . . . Fabricator Hacks 15 | . . . . . . . . 4 3 4 4 . Network Status 2 | . . . . . . . . 1 1 . . . Load Schematic 8 | . . . . . . . . 2 1 3 2 . Build 5 | . . . . . . . . 1 1 1 2 . Repair Station Hacks 12 | . . . . . . . 4 2 5 . 1 . Scan Component 7 | . . . . . . . 2 1 3 . 1 . Repair 5 | . . . . . . . 2 1 2 . . . Recycling Unit Hacks 4 | . . . . . . . . 1 1 1 1 . Report Inventory 3 | . . . . . . . . 1 1 1 . . Retrieve Components 1 | . . . . . . . . . . . 1 . Scanalyzer 11 | . . . . . . . . 9 . . 2 . Insert Component 6 | . . . . . . . . 5 . . 1 . Analyze 5 | . . . . . . . . 4 . . 1 . Garrison Access Hacks 2 | . . . . . . . . 1 1 . . . Seal Access 2 | . . . . . . . . 1 1 . . . Unauthorized Hacks 1 | . . . . . . . . . . 1 . . Terminals 1 | . . . . . . . . . . 1 . . Assimilate 1 | . . . . . . . . . . 1 . . Fabricators . | . . . . . . . . . . . . . Repair Stations . | . . . . . . . . . . . . . Recycling Units . | . . . . . . . . . . . . . Scanalyzers . | . . . . . . . . . . . . . Garrison Access . | . . . . . . . . . . . . . Data Cores Recovered 1 | . . . . . . . . . . . 1 . Used . | . . . . . . . . . . . . . Hacking Detections 63 | . 3 . 3 . . . 6 12 9 10 14 6 Full Trace Events 16 | . . . . . . . 1 5 1 3 3 3 Feedback Events 1 | . . . . . . . 1 . . . . . Corruption 1 | . . . . . . . 1 . . . . . Feedback Blocked . | . . . . . . . . . . . . . Robot Schematics Acquired . | . . . . . . . . . . . . . Robots Built . | . . . . . . . . . . . . . Authchips . | . . . . . . . . . . . . . Time . | . . . . . . . . . . . . . Total Robot Build Rating . | . . . . . . . . . . . . . Part Schematics Acquired 10 | . . . 1 . . . 1 5 . 3 . . Parts Built 7 | . . . . . . . . 2 1 1 3 . Authchips . | . . . . . . . . . . . . . Time 365 | . . . . . . . . 84 106 58 117 . Total Part Build Rating 43 | . . . . . . . . 8 6 7 22 . Parts Repaired 4 | . . . . . . . 2 1 1 . . . Time 196 | . . . . . . . 70 26 100 . . . Parts Recycled . | . . . . . . . . . . . . . Recycled Matter . | . . . . . . . . . . . . . Retrieved Matter . | . . . . . . . . . . . . . Retrieved Components 1 | . . . . . . . . . . . 1 . Parts Scanalyzed 5 | . . . . . . . . 4 . . 1 . Part Schematics Acquired 3 | . . . . . . . . 3 . . . . Parts Damaged 1 | . . . . . . . . . . . 1 . Bothacking | -11 -10 -10 -9 -9 -9 -8 -8 -7 -6 -5 -4 -4 ------------ Run | Yrd Mat Min Mat Min Exi Min Mat Fac Fac Fac Fac Ext Used RIF Installer . | . . . . . . . . . . . . . Robots Hacked . | . . . . . . . . . . . . . Non-combat . | . . . . . . . . . . . . . Combat . | . . . . . . . . . . . . . Robot Hacks Applied . | . . . . . . . . . . . . . Relay Couplers Released 2 | . . . . . . . 2 . . . . . Machine Destruction 2 | . . . . . . . 2 . . . . . Fabnet Peak Effective % . | . . . . . . . . . . . . . Robots Rewired 1 | . . . . . . . . 1 . . . . Allies Hacked . | . . . . . . . . . . . . . Hacks Repelled . | . . . . . . . . . . . . . Allies | -11 -10 -10 -9 -9 -9 -8 -8 -7 -6 -5 -4 -4 -------- Run | Yrd Mat Min Mat Min Exi Min Mat Fac Fac Fac Fac Ext Total Allies 11 | . . 2 . 3 . . . 1 . . . 5 Largest Group 3 | . . 2 2 3 3 . . 1 . . . 3 Highest-Rated Group 248 | . . 45 45 40 40 . . 25 . . . 248 Highest-Rated Ally 159 | . . 31 31 16 16 . . 25 . . . 159 Total Orders . | . . . . . . . . . . . . . Ally Attacks 120 | . . 7 17 4 4 . 16 14 . . . 58 Total Damage 4214 | . . 148 170 54 11 . 899 342 . . . 2590 Kills 32 | . . 1 3 . . . 8 1 . . . 19 Allies Corrupted . | . . . . . . . . . . . . . Allies Melted . | . . . . . . . . . . . . . Turrets Deployed 2 | . . . . . . . 1 1 . . . . Intel | -11 -10 -10 -9 -9 -9 -8 -8 -7 -6 -5 -4 -4 ------- Run | Yrd Mat Min Mat Min Exi Min Mat Fac Fac Fac Fac Ext Robot Analysis Total 2 | . . . . . . . . 2 . . . . Derelict Logs Recovered 2 | . . 1 . 1 . . . . . . . . Drone Launches . | . . . . . . . . . . . . . Drone Recoveries . | . . . . . . . . . . . . . Exploration | -11 -10 -10 -9 -9 -9 -8 -8 -7 -6 -5 -4 -4 ------------- Run | Yrd Mat Min Mat Min Exi Min Mat Fac Fac Fac Fac Ext Turns Passed 13918 | 141 764 562 1416 771 483 1309 2524 1715 820 930 883 1600 Spaces Moved 11904 | 83 380 300 681 473 288 659 916 2532 1267 1395 1502 1428 Core 15 | 6 . . . . . . 1 . . . . 8 Treads 3742 | 77 380 300 681 473 288 659 865 . . . . 19 Legs 434 | . . . . . . . 49 . . . . 385 Wheels . | . . . . . . . . . . . . . Hover 3025 | . . . . . . . 1 2532 349 . . 143 Flight 4688 | . . . . . . . . . 918 1395 1502 873 Fastest Speed 27 | 50 160 160 160 160 160 160 160 38 27 28 31 29 Average Speed 84 | 152 160 160 160 160 160 161 223 39 36 29 32 72 Slowest Speed 1300 | 160 160 160 160 160 160 240 1300 170 117 117 113 550 Overloaded Moves . | . . . . . . . . . . . . . Propulsion Burnouts . | . . . . . . . . . . . . . Robots Hopped 21 | . . . . . . . . . 1 2 3 15 Cave-ins Triggered 1 | . . . . . . 1 . . . . . . Exploration Rate (%) 52 | 5 46 53 46 93 63 101 72 49 28 31 37 52 Regions Visited 12 Branch Regions 5 Pre-discovered Areas 1 | . . . . 1 . . . . . . . . Known Exits Taken 11 | . 1 1 1 1 1 1 1 1 1 1 1 . Unknown Exits Taken 1 | 1 . . . . . . . . . . . . Scrap Searched 3 | . . 1 . 1 . 1 . . . . . . Spaces Dug 52 | . . . . 1 . . 4 13 16 7 8 3 Terrain Destroyed 172 | . . . 22 3 . 16 41 13 16 7 23 31 Melee 47 | . . . . . . . . 13 16 7 8 3 Projectile 66 | . . . 22 3 . 16 21 . . . . 4 AOE 59 | . . . . . . . 20 . . . 15 24 Terrain Rammed . | . . . . . . . . . . . . . Walls Destroyed . | . . . . . . . . . . . . . Machines Disabled . | . . . . . . . . . . . . . Actions | -11 -10 -10 -9 -9 -9 -8 -8 -7 -6 -5 -4 -4 --------- Run | Yrd Mat Min Mat Min Exi Min Mat Fac Fac Fac Fac Ext Total 14745 | 94 500 368 869 482 303 791 1218 3094 1520 1852 1820 1834 Wait 1378 | . 84 52 39 3 7 35 105 322 95 354 171 111 Move 11857 | 82 379 299 680 472 287 658 915 2531 1264 1390 1495 1405 Hop 13 | . . . . . . . . . 1 2 3 7 Pick Up 118 | 5 9 2 18 1 3 7 19 21 10 8 6 9 Fast Attach 145 | 5 1 . 8 . . 1 26 22 12 13 21 36 Attach 71 | . 1 . 3 . . 5 6 15 11 5 13 12 Detach 47 | . . . 5 . . . 6 6 6 4 10 10 Swap 76 | . . 4 15 . . 7 11 10 10 8 9 2 Drop 194 | . 5 2 24 1 2 3 34 39 17 22 24 21 Fire 322 | . 21 6 73 3 4 49 96 8 16 . 2 44 Melee 341 | . . 3 . . . 24 . 100 60 46 48 60 Ram . | . . . . . . . . . . . . . Kick 1 | . . . . . . . . . . . . 1 Crush 8 | 2 . . 4 . . 2 . . . . . . Escape Stasis 151 | . . . . . . . . 13 18 . 18 102 Rewire 23 | . . . . 2 . . . 7 . . . 14 Trap . | . . . . . . . . . . . . . Miscellaneous . | . . . . . . . . . . . . . Route ------- -11/Scrapyard -10/Materials (discovered 2 exits: *Mat / *Min) -10/Mines (discovered 2 exits: *Mat / *Sub) -9/Materials (discovered 2 exits: *Mat / *Min) -9/Mines (discovered 3 exits: *Mat x2 / *Exi) -9/Exiles (discovered 2 exits: *Min x2) -8/Mines (discovered 2 exits: *Mat x2) -8/Materials (discovered 2 exits: *Fac / [*Sto]) -7/Factory (discovered 3 exits: *Fac / *Low x2) -6/Factory (discovered 2 exits: *Fac / *Low) -5/Factory -4/Factory (discovered 3 exits: *Res x2 / *Ext) -4/Extension History --------- Turn | Location | Event 4 | -11/Scrapyard | Discovered new exit (range 16) 142 | -11/Scrapyard | Entered Materials 314 | -10/Materials | Build established: Mutant 334 | -10/Materials | Identified exit to Mines 785 | -10/Materials | Discovered new exit (range 15) 906 | -10/Materials | Entered Mines 1135 | -10/Mines | Learned Materials terminal intel 1137 | -10/Mines | Found the Drone Emporium 1167 | -10/Mines | Found Prototype Device 1232 | -10/Mines | Identified Thief Drone Bay 1248 | -10/Mines | Discovered new exit (range 5) 1338 | -10/Mines | Discovered new exit (range 5) 1356 | -10/Mines | Identified exit to Subcaves 1464 | -10/Mines | Identified exit to Materials 1468 | -10/Mines | Entered Materials 1468 | -9/Materials | Accompanied by 2 allies 1468 | -9/Materials | Evolved 2 slots: Propulsion x1, Utility x1 1469 | -9/Materials | Loaded intel: 10 terminal locations 1473 | -9/Materials | Led the pair of lost Derelicts to an unsafe place 2248 | -9/Materials | Discovered new exit (range 8) 2260 | -9/Materials | Identified exit to Materials 2475 | -9/Materials | Discovered new exit (range 13) 2535 | -9/Materials | Identified exit to Mines 2884 | -9/Materials | Entered Mines 2940 | -9/Mines | Discovered exit to Materials (range 9) 2969 | -9/Mines | Met a Derelict bent on vengeance 3067 | -9/Mines | Assisted by bots powering up and referring to "LRC-V3" 3431 | -9/Mines | Discovered exit to Materials (range 12) 3649 | -9/Mines | Deemed a non-threat by the Exiles lab entrance 3649 | -9/Mines | Discovered new exit (range 5) 3654 | -9/Mines | Identified exit to Exiles 3655 | -9/Mines | Entered Exiles 3655 | -9/Exiles | Accompanied by 3 allies 3676 | -9/Exiles | Discovered new exit (range 15) 3702 | -9/Exiles | Identified exit to Mines 3732 | -9/Exiles | Met 8R-AWN 3759 | -9/Exiles | Met EX-HEX 3804 | -9/Exiles | Met EX-BIN 3827 | -9/Exiles | Aligned with FarCom system 3828 | -9/Exiles | Given EX-Vault access code 3871 | -9/Exiles | Opened EX-Vault 3886 | -9/Exiles | Found Deploy-a-Sentry 3890 | -9/Exiles | Found Deploy-a-Sentry 3892 | -9/Exiles | Found Deploy-a-Sentry 3923 | -9/Exiles | Warned to stay clear of 0b10 Research branches 3940 | -9/Exiles | Exiles lab attacked by MAIN.C 4105 | -9/Exiles | Core integrity fell below 50% 4106 | -9/Exiles | Lost 4 allies 4125 | -9/Exiles | Discovered exit to Mines (range 10) 4138 | -9/Exiles | Left Exiles lab with Deploy-a-Sentry 4138 | -9/Exiles | Entered Mines 4217 | -8/Mines | Discovered exit to Materials (range 6) 4673 | -8/Mines | Crushed by falling debris 4704 | -8/Mines | Lost 3 parts (2n1w) 4746 | -8/Mines | Core integrity fell below 20% 5431 | -8/Mines | Discovered exit to Materials (range 6) 5447 | -8/Mines | Entered Materials 5447 | -8/Materials | Evolved 2 slots: Utility x2 5629 | -8/Materials | Met 7R-MNS 5664 | -8/Materials | DAS Turret deployed 5682 | -8/Materials | Lost 4 parts (2n1u1w) 6111 | -8/Materials | Build established: Scavenger-Mutant 6637 | -8/Materials | Core integrity fell below 50% 7125 | -8/Materials | Discovered new exit (range 15) 7457 | -8/Materials | Discovered new exit (range 16) 7535 | -8/Materials | Identified exit to Factory 7826 | -8/Materials | Repaired Imp. Light Armor Plating 7860 | -8/Materials | Repaired Mni. Grenade Launcher 7971 | -8/Materials | Entered Factory 7971 | -7/Factory | Evolved 2 slots: Propulsion x1, Utility x1 7972 | -7/Factory | Caught up to 7R-MNS 8194 | -7/Factory | Repaired Med. Storage Unit 8320 | -7/Factory | Discovered new exit (range 10) 8324 | -7/Factory | Identified exit to Lower Caves 8737 | -7/Factory | Build established: Hacker-Mutant 8934 | -7/Factory | Discovered exit to Lower Caves (range 15) 9212 | -7/Factory | Discovered new exit (range 12) 9345 | -7/Factory | DAS Turret deployed 9449 | -7/Factory | Lost 6 parts (1p3n2u) 9658 | -7/Factory | Fabricated Greatsword (x2) 9685 | -7/Factory | Identified exit to Factory 9686 | -7/Factory | Entered another Factory area 9686 | -6/Factory | Evolved 2 slots: Utility x1, Weapon x1 9687 | -6/Factory | Caught up to 7R-MNS 9875 | -6/Factory | Fabricated Nuclear Pulse Array? 9986 | -6/Factory | Build established: Hacker-Gladiator 10036 | -6/Factory | First assault squad dispatched 10111 | -6/Factory | Discovered new exit (range 7) 10112 | -6/Factory | Identified exit to Lower Caves 10309 | -6/Factory | Found Prototype Processor 10309 | -6/Factory | Identified Exp. Targeting Computer 10386 | -6/Factory | Search patrols dispatched 10389 | -6/Factory | Repaired Nuclear Pulse Array 10436 | -6/Factory | Build established: Hacker-Sprinter 10502 | -6/Factory | Discovered new exit (range 13) 10505 | -6/Factory | Identified exit to Factory 10506 | -6/Factory | Entered another Factory area 10506 | -5/Factory | Evolved 2 slots: Power x1, Propulsion x1 10507 | -5/Factory | Caught up to 7R-MNS 10694 | -5/Factory | Garrison activated, responded to threat 10746 | -5/Factory | Fabricated Force Lance? 11310 | -5/Factory | Discovered new exit (range 5) 11311 | -5/Factory | Identified exit to Factory 11436 | -5/Factory | Entered another Factory area 11436 | -4/Factory | Evolved 2 slots: Utility x2 11437 | -4/Factory | Caught up to 7R-MNS 11502 | -4/Factory | Fabricated Smartbomb Launcher (x1) 11595 | -4/Factory | Found Prototype Hackware 11595 | -4/Factory | Identified Exp. System Shield 11600 | -4/Factory | Found Prototype Device 11600 | -4/Factory | Identified Exp. ECM Suite 11676 | -4/Factory | Discovered new exit (range 16) 11681 | -4/Factory | Identified exit to Research 11744 | -4/Factory | Found Prototype Launcher 11744 | -4/Factory | Identified Com. Tesla Bomb Launcher 11889 | -4/Factory | Lost 4 parts (1n2u1w) 12026 | -4/Factory | 7R-MNS successfully reached the Upper Caves 12188 | -4/Factory | Fabricated Q-thruster? 12241 | -4/Factory | Discovered exit to Research (range 15) 12250 | -4/Factory | Spotted B-86 Titan 12284 | -4/Factory | Lost 3 parts (2n1w) 12303 | -4/Factory | Discovered new exit (range 15) 12319 | -4/Factory | Identified exit to Extension 12319 | -4/Factory | Entered Extension 12351 | -4/Extension | Build established: Sprinter 12392 | -4/Extension | Spotted B-86 Titan 13055 | -4/Extension | Lost 6 parts (2p1n3u) 13145 | -4/Extension | Core integrity fell below 50% 13179 | -4/Extension | Lost 6 parts (1p1n4u) 13299 | -4/Extension | Found Heavy Servo Lattice 13341 | -4/Extension | Core integrity fell below 20% 13342 | -4/Extension | Spotted B-86 Titan 13354 | -4/Extension | Rescued A7 13358 | -4/Extension | Rescued a captive Derelict 13359 | -4/Extension | Rescued a captive Derelict 13377 | -4/Extension | Lost 3 parts (1p1n1u) 13427 | -4/Extension | Build established: Mutant 13484 | -4/Extension | Rescued a captive Derelict 13486 | -4/Extension | Rescued a captive Derelict 13555 | -4/Extension | Extracted ID and sensor layout for unrecognized location from A7's data core 13569 | -4/Extension | Disrupted transfer network 13605 | -4/Extension | Energy Cycler disabled 13605 | -4/Extension | Rescued a captive Derelict 13605 | -4/Extension | Rescued a captive Derelict 13606 | -4/Extension | Rescued a captive Derelict 13606 | -4/Extension | Rescued a captive Derelict 13618 | -4/Extension | Rescued a captive Derelict 13832 | -4/Extension | Build established: Scavenger-Mutant 13886 | -4/Extension | System corruption reached 10% 13919 | -4/Extension | Destroyed by B-86 Titan with Hardcell Cannon Last Messages --------------- 13891_ Acquired Corrupted Imp. Treads. 13891_ Integrated Corrupted Imp. Treads (+10). 13894_ Acquired Corrupted Neutrino Core. 13894_ Integrated Corrupted Neutrino Core (+3). 13898_ Acquired 20 matter. 13906_ Slug penetrates Wall. 13909_ Penetrated by Slug. 13910_ System corrupted: Substantial component data lost. 13912_ Slug penetrates Machine. 13912_ Machine disabled. 13912_ Slug penetrates Wall. 13915_ Hrd. Medium Armor Plating destroyed. 13915_ Penetrated by Slug. 13915_ Slug penetrates Wall. 13918_ U-05 Engineer builds a Wall. 13919_ Lgt. Antimatter Reactor destroyed. [Achievement: This Is Interesting...] [Achievement: Just Browsing] [Achievement: Achiever] Map ----- +----------------------------------------------------+ | ##??????# ####### ###?????????????????????????? | | ##??????# #?????????????????????????? | | %####????# ######### #?????????????????????????? | | %## #????#####???????# ####??????????????????????? | | %## #???????????????## #??????????????????????? | | #######????????????### ##?????????????????????? | | !! #????????????#[# %%=##?????????????????????? | | !! ####????????##!# %= ##?????????????????????? | | !! "" #???###??#* #%*%*##?????????????????????? | | "#?###T####### =##?????????????????????? | | ! """#?# % !% [##?????????????????????? | | ####?# ##########*# #????????????????????? | | #????### #????### #!###????????????????????? | | ""# ###??????###??????###=#??????????????????????? | | ""###???????????????????#%#??????????????????????? | | ###???????????????????### #??????????????????????? | | ????????????????????###[# #??????????????????????? | | ????????????????????# [%;%#??????????????????????? | | ????????????????????#!#!#[#??????????????????????? | | ????????????????????#####=#?????????g????????????? | | ????????????????????????#*#??????????????????????? | | ????????????????????????#!#??????????????????????? | | ????????????????????????#=#??????????????????????? | | ???????????????????????##u#??##??#???????????????? | | ????????????????????#?### ### ## ###?????????????? | | ????????????????????# #" @"" "" "???????????? | | ?????????????????????## "% u " " ??????????? | | ?????????????????????## u #?????????? | | ??###?????????????????# #?????????? | | #################"###"#% #?????????? | | ?????????? | | ! ?????????? | | %! ??????????? | | ! ??????????? | | k R???????????? | | ####################### BB BB ???????????? | | ??????????????????????# BB BB ???????????? | | ??????????????????????# ????????????? | | ??????????????????????# ????????????? | | ??????????????????????# ?????????????? | | ??????????????????????######T#"""###?????????????? | | ????????????????????????????##???????????????????? | | ?????????????????????????????????????????????????? | | | | | | | | | | | | | | | +----------------------------------------------------+ Best States ------------- Heat Dissipation 81 Energy Generation 35 Energy Capacity 385 Matter Stores 300 Matter Capacity 700 Sight Range 16 Terrain Scan Density 10 Jamming Range 16 Additional Mass Support 16 Corruption Containment 12 Armor Coverage 450 Power Shielding 66 Propulsion Shielding 66 Melee Speed Boost 30 Evasion (%) 75 Melee Accuracy 8 Recoil Reduction 3 Offensive Hacking 20 Defensive Hacking 16 Item Schematics ----------------- Rnf. Ion Engine | -9/Materials | Hacked Airjet | -8/Materials | Hacked Greatsword | -7/Factory | Hacked Nuclear Pulse Array | -7/Factory | Hacked Cld. Airjet | -7/Factory | Scanalyzed Imp. Light Armor Plating | -7/Factory | Scanalyzed Chainsword | -7/Factory | Scanalyzed Smartbomb Launcher | -5/Factory | Hacked Force Lance | -5/Factory | Hacked Q-thruster | -5/Factory | Hacked Robot Schematics ------------------ None Fabricated ------------ Greatsword | x2 | -7/Factory Nuclear Pulse Array | x1 | -6/Factory Force Lance | x1 | -5/Factory Smartbomb Launcher | x1 | -4/Factory Q-thruster | x2 | -4/Factory Alien Tech Used ----------------- None Achievements -------------- Achiever Cya! Deadly Force Dodgeball, But With Guns Just Browsing Ooh, Shiny! Party Time Prison Break This Is Interesting... Treasure Hunter True Hacker Challenges ------------ None Game ------ Seed NullRegenerativeEngine Manual? 0 Play Time 04:20:44 Cumulative 25.3 hours Start 2024.04.07 @ 12:37:40 End 2024.04.10 @ 22:38:08 Sessions 13 Manual Loads 0 Difficulty Rogue Special Mode None Game No. 15 Rogue 15 Adventurer 0 Explorer 0 Win Type - Total 0 Types 0/0/0/0/0/0/0/0/0 Lore% 25 Gallery% 28 Achievement% 26 Wizard Run 0 Options --------- Layout 1 ASCII 0 Keyboard 1 Movement Vi Keybinds 0 Fullscreen 1 Font 24/Smallcaps Map View 50x35 Zoom Use 0% Tactical HUD 1 Map Filters NONE Filters NONE Steam 1 RUN: 87a9e842-521c-4459-9e4d-f62205656f5e